[Event "December 12 Late 2023"]
[Site "https://www.chess.com"]
[Date "2023.12.12"]
[Round "8"]
[White "Khismatullin, Denis"]
[Black "Ghasi, Ameet K"]
[Result "1-0"]
[Board "16"]
[TimeControl "180+1"]
[WhiteFideId "4142578"]
[BlackFideId "409200"]
[WhiteElo "2955"]
[BlackElo "2796"]
[WhiteTeam "RUS"]
[BlackTeam "ENG"]
[WhiteClock "0:00:14"]
[BlackClock "0:00:00"]

1. e4 {[%clk 0:03:00]}  g6 {[%clk 0:02:59]} 2. d4 {[%clk 0:03:00]}  Bg7 {[%clk 0:02:59]} 3. Nf3 {[%clk 0:03:00]}  d6 {[%clk 0:03:00]} 4. Be2 {[%clk 0:03:00]}  Nf6 {[%clk 0:03:00]} 5. Nc3 {[%clk 0:03:01]}  O-O {[%clk 0:03:00]} 6. O-O {[%clk 0:03:01]}  Nc6 {[%clk 0:03:01]} 7. d5 {[%clk 0:03:00]}  Nb8 {[%clk 0:03:00]} 8. h3 {[%clk 0:02:58]}  c6 {[%clk 0:03:00]} 9. a4 {[%clk 0:02:58]}  cxd5 {[%clk 0:02:50]} 10. exd5 {[%clk 0:02:57]}  a6 {[%clk 0:02:49]} 11. Re1 {[%clk 0:02:56]}  b6 {[%clk 0:02:44]} 12. Bg5 {[%clk 0:02:54]}  Bb7 {[%clk 0:02:44]} 13. Qd2 {[%clk 0:02:54]}  Nbd7 {[%clk 0:02:44]} 14. Rad1 {[%clk 0:02:51]}  Rc8 {[%clk 0:02:44]} 15. Bh6 {[%clk 0:02:49]}  Re8 {[%clk 0:02:34]} 16. Bxg7 {[%clk 0:02:48]}  Kxg7 {[%clk 0:02:35]} 17. Nd4 {[%clk 0:02:42]}  Qc7 {[%clk 0:02:21]} 18. Qg5 {[%clk 0:02:26]}  Kh8 {[%clk 0:02:15]} 19. h4 {[%clk 0:02:20]}  Qc5 {[%clk 0:02:09]} 20. Nb3 {[%clk 0:02:19]}  Qc7 {[%clk 0:02:02]} 21. h5 {[%clk 0:02:18]}  Kg7 {[%clk 0:01:31]} 22. h6+ {[%clk 0:02:17]}  Kg8 {[%clk 0:01:30]} 23. f4 {[%clk 0:02:05]}  Nc5 {[%clk 0:01:25]} 24. Bf3 {[%clk 0:02:00]}  Nxb3 {[%clk 0:01:22]} 25. cxb3 {[%clk 0:02:01]}  Qd7 {[%clk 0:01:14]} 26. Rd4 {[%clk 0:01:50]}  b5 {[%clk 0:00:57]} 27. axb5 {[%clk 0:01:44]}  axb5 {[%clk 0:00:58]} 28. Rb4 {[%clk 0:01:30]}  Rc5 {[%clk 0:00:56]} 29. Kh2 {[%clk 0:01:18]}  Kf8 {[%clk 0:00:53]} 30. Ra1 {[%clk 0:01:07]}  Qf5 {[%clk 0:00:44]} 31. Rd1 {[%clk 0:00:52]}  Rb8 {[%clk 0:00:43]} 32. Rbd4 {[%clk 0:00:45]}  Qxg5 {[%clk 0:00:29]} 33. fxg5 {[%clk 0:00:44]}  Nd7 {[%clk 0:00:29]} 34. b4 {[%clk 0:00:44]}  Rcc8 {[%clk 0:00:19]} 35. Bg4 {[%clk 0:00:43]}  Rd8 {[%clk 0:00:16]} 36. Bxd7 {[%clk 0:00:42]}  Rxd7 {[%clk 0:00:17]} 37. Rf1 {[%clk 0:00:42]}  Kg8 {[%clk 0:00:08]} 38. Rdf4 {[%clk 0:00:42]}  Rf8 {[%clk 0:00:09]} 39. Kg3 {[%clk 0:00:42]}  Ba8 {[%clk 0:00:04]} 40. Re1 {[%clk 0:00:41]}  Rb7 {[%clk 0:00:03]} 41. Rfe4 {[%clk 0:00:39]}  Re8 {[%clk 0:00:03]} 42. R4e3 {[%clk 0:00:39]}  Kf8 {[%clk 0:00:03]} 43. Ra1 {[%clk 0:00:36]}  Reb8 {[%clk 0:00:02]} 44. Ra5 {[%clk 0:00:35]}  Ke8 {[%clk 0:00:02]} 45. Ne4 {[%clk 0:00:33]}  Kf8 {[%clk 0:00:02]} 46. Rc3 {[%clk 0:00:33]}  Rd7 {[%clk 0:00:02]} 47. Rd3 {[%clk 0:00:31]}  Rc7 {[%clk 0:00:03]} 48. Nc3 {[%clk 0:00:31]}  Rc4 {[%clk 0:00:01]} 49. Rxb5 {[%clk 0:00:24]}  Rxb5 {[%clk 0:00:01]} 50. Nxb5 {[%clk 0:00:25]}  Rxb4 {[%clk 0:00:02]} 51. Nc7 {[%clk 0:00:23]}  Bb7 {[%clk 0:00:03]} 52. b3 {[%clk 0:00:22]}  Rb6 {[%clk 0:00:03]} 53. Rc3 {[%clk 0:00:21]}  Rb4 {[%clk 0:00:02]} 54. Kf2 {[%clk 0:00:20]}  Rd4 {[%clk 0:00:02]} 55. Rc4 {[%clk 0:00:16]}  Rd1 {[%clk 0:00:02]} 56. Rb4 {[%clk 0:00:16]}  Bc8 {[%clk 0:00:01]} 57. Rb8 {[%clk 0:00:15]}  f5 {[%clk 0:00:02]} 58. Rxc8+ {[%clk 0:00:15]}  Kf7 {[%clk 0:00:00]} 59. b4 {[%clk 0:00:14]} 1-0

[Event "December 12 Late 2023"]
[Site "https://www.chess.com"]
[Date "2023.12.12"]
[Round "8"]
[White "Troff, Kayden"]
[Black "Zhigalko, Sergei"]
[Result "0-1"]
[Board "17"]
[TimeControl "180+1"]
[WhiteFideId "2047896"]
[BlackFideId "13502956"]
[WhiteElo "2784"]
[BlackElo "2954"]
[WhiteTeam "USA"]
[BlackTeam "BLR"]
[WhiteClock "0:00:07"]
[BlackClock "0:00:06"]

1. d4 {[%clk 0:03:00]}  Nf6 {[%clk 0:02:59]} 2. Nf3 {[%clk 0:02:59]}  e6 {[%clk 0:02:59]} 3. Bf4 {[%clk 0:03:00]}  b6 {[%clk 0:02:57]} 4. e3 {[%clk 0:02:59]}  Bb7 {[%clk 0:02:58]} 5. Nbd2 {[%clk 0:03:00]}  Nh5 {[%clk 0:02:57]} 6. Bg5 {[%clk 0:02:54]}  Be7 {[%clk 0:02:58]} 7. Bxe7 {[%clk 0:02:54]}  Qxe7 {[%clk 0:02:58]} 8. Bd3 {[%clk 0:02:49]}  d6 {[%clk 0:02:57]} 9. c3 {[%clk 0:02:46]}  Nd7 {[%clk 0:02:56]} 10. a4 {[%clk 0:02:45]}  a6 {[%clk 0:02:52]} 11. a5 {[%clk 0:02:44]}  b5 {[%clk 0:02:52]} 12. c4 {[%clk 0:02:43]}  bxc4 {[%clk 0:02:53]} 13. Nxc4 {[%clk 0:02:41]}  Rb8 {[%clk 0:02:46]} 14. O-O {[%clk 0:02:37]}  O-O {[%clk 0:02:45]} 15. Rc1 {[%clk 0:02:24]}  Nhf6 {[%clk 0:02:42]} 16. Qe2 {[%clk 0:02:19]}  c5 {[%clk 0:02:25]} 17. Rfd1 {[%clk 0:01:27]}  Bxf3 {[%clk 0:02:25]} 18. Qxf3 {[%clk 0:01:27]}  d5 {[%clk 0:02:24]} 19. Ne5 {[%clk 0:01:25]}  Nxe5 {[%clk 0:02:04]} 20. dxe5 {[%clk 0:01:24]}  Nd7 {[%clk 0:02:05]} 21. Qh3 {[%clk 0:00:58]}  g6 {[%clk 0:01:58]} 22. e4 {[%clk 0:00:58]}  c4 {[%clk 0:00:51]} 23. Bc2 {[%clk 0:00:50]}  dxe4 {[%clk 0:00:32]} 24. Bxe4 {[%clk 0:00:47]}  Nxe5 {[%clk 0:00:28]} 25. Qe3 {[%clk 0:00:29]}  Qf6 {[%clk 0:00:24]} 26. f4 {[%clk 0:00:22]}  Nd3 {[%clk 0:00:14]} 27. Bxd3 {[%clk 0:00:20]}  cxd3 {[%clk 0:00:15]} 28. Rxd3 {[%clk 0:00:12]}  Qxb2 {[%clk 0:00:15]} 29. Qd2 {[%clk 0:00:08]}  Qf6 {[%clk 0:00:10]} 30. g3 {[%clk 0:00:06]}  Rb5 {[%clk 0:00:06]} 31. Kg2 {[%clk 0:00:04]}  Qf5 {[%clk 0:00:05]} 32. Rc2 {[%clk 0:00:04]}  Rxa5 {[%clk 0:00:05]} 33. Re3 {[%clk 0:00:02]}  h5 {[%clk 0:00:05]} 34. Qe2 {[%clk 0:00:03]}  h4 {[%clk 0:00:05]} 35. gxh4 {[%clk 0:00:02]}  Qxf4 {[%clk 0:00:05]} 36. Rc4 {[%clk 0:00:02]}  Qf5 {[%clk 0:00:04]} 37. Rg3 {[%clk 0:00:03]}  Qd5+ {[%clk 0:00:04]} 38. Kh3 {[%clk 0:00:03]}  Rc5 {[%clk 0:00:03]} 39. Rf4 {[%clk 0:00:02]}  Kg7 {[%clk 0:00:02]} 40. Qf2 {[%clk 0:00:02]}  f5 {[%clk 0:00:02]} 41. Rg5 {[%clk 0:00:02]}  Rc3+ {[%clk 0:00:01]} 42. Rg3 {[%clk 0:00:03]}  Qe5 {[%clk 0:00:02]} 43. h5 {[%clk 0:00:03]}  Rh8 {[%clk 0:00:01]} 44. Rh4 {[%clk 0:00:03]}  Rh6 {[%clk 0:00:01]} 45. Kg2 {[%clk 0:00:02]}  Rxg3+ {[%clk 0:00:02]} 46. hxg3 {[%clk 0:00:03]}  Qd5+ {[%clk 0:00:02]} 47. Kh2 {[%clk 0:00:03]}  Rxh5 {[%clk 0:00:02]} 48. Rxh5 {[%clk 0:00:03]}  gxh5 {[%clk 0:00:03]} 49. Qf4 {[%clk 0:00:04]}  Kg6 {[%clk 0:00:03]} 50. Qb8 {[%clk 0:00:04]}  e5 {[%clk 0:00:03]} 51. Qe8+ {[%clk 0:00:04]}  Kf6 {[%clk 0:00:03]} 52. Qf8+ {[%clk 0:00:04]}  Ke6 {[%clk 0:00:03]} 53. Qe8+ {[%clk 0:00:05]}  Kd6 {[%clk 0:00:04]} 54. Qb8+ {[%clk 0:00:05]}  Kc5 {[%clk 0:00:04]} 55. Qb2 {[%clk 0:00:06]}  Qd4 {[%clk 0:00:03]} 56. Qc2+ {[%clk 0:00:06]}  Kd5 {[%clk 0:00:03]} 57. Qxf5 {[%clk 0:00:07]}  a5 {[%clk 0:00:04]} 58. Qf7+ {[%clk 0:00:07]}  Ke4 {[%clk 0:00:04]} 59. Qb7+ {[%clk 0:00:07]}  Ke3 {[%clk 0:00:04]} 60. Qb3+ {[%clk 0:00:07]}  Ke2 {[%clk 0:00:04]} 61. Qa2+ {[%clk 0:00:07]}  Qd2 {[%clk 0:00:04]} 62. Qc4+ {[%clk 0:00:08]}  Kf3+ {[%clk 0:00:04]} 63. Kh3 {[%clk 0:00:07]}  Qg2+ {[%clk 0:00:05]} 64. Kh4 {[%clk 0:00:08]}  Qh2+ {[%clk 0:00:04]} 65. Kg5 {[%clk 0:00:09]}  Qxg3+ {[%clk 0:00:05]} 66. Kxh5 {[%clk 0:00:08]}  Qh3+ {[%clk 0:00:05]} 67. Kg5 {[%clk 0:00:08]}  Qg3+ {[%clk 0:00:06]} 68. Kh5 {[%clk 0:00:09]}  Qf4 {[%clk 0:00:06]} 69. Qf1+ {[%clk 0:00:08]}  Ke3 {[%clk 0:00:06]} 70. Qc1+ {[%clk 0:00:09]}  Kd3 {[%clk 0:00:06]} 71. Qb1+ {[%clk 0:00:09]}  Kc3 {[%clk 0:00:06]} 72. Qa1+ {[%clk 0:00:09]}  Kb3 {[%clk 0:00:06]} 73. Qd1+ {[%clk 0:00:08]}  Kb4 {[%clk 0:00:06]} 74. Qb1+ {[%clk 0:00:09]}  Kc5 {[%clk 0:00:06]} 75. Qc2+ {[%clk 0:00:08]}  Qc4 {[%clk 0:00:06]} 76. Qf2+ {[%clk 0:00:09]}  Kb5 {[%clk 0:00:05]} 77. Qb2+ {[%clk 0:00:09]}  Qb4 {[%clk 0:00:06]} 78. Qe2+ {[%clk 0:00:09]}  Kb6 {[%clk 0:00:06]} 79. Qf2+ {[%clk 0:00:09]}  Qc5 {[%clk 0:00:06]} 80. Qf6+ {[%clk 0:00:09]}  Kb5 {[%clk 0:00:07]} 81. Qf1+ {[%clk 0:00:09]}  Kc6 {[%clk 0:00:06]} 82. Qf6+ {[%clk 0:00:10]}  Qd6 {[%clk 0:00:07]} 83. Qf3+ {[%clk 0:00:10]}  Qd5 {[%clk 0:00:06]} 84. Qf6+ {[%clk 0:00:10]}  Kd7 {[%clk 0:00:07]} 85. Qg7+ {[%clk 0:00:10]}  Kd6 {[%clk 0:00:07]} 86. Qf6+ {[%clk 0:00:10]}  Qe6 {[%clk 0:00:07]} 87. Qf8+ {[%clk 0:00:10]}  Kd5 {[%clk 0:00:07]} 88. Qd8+ {[%clk 0:00:09]}  Ke4 {[%clk 0:00:06]} 89. Qa8+ {[%clk 0:00:10]}  Qd5 {[%clk 0:00:06]} 90. Qf8 {[%clk 0:00:09]}  a4 {[%clk 0:00:06]} 91. Kg4 {[%clk 0:00:09]}  Kd4 {[%clk 0:00:06]} 92. Qf2+ {[%clk 0:00:09]}  Kc4 {[%clk 0:00:06]} 93. Qa2+ {[%clk 0:00:09]}  Kc5 {[%clk 0:00:06]} 94. Qa3+ {[%clk 0:00:09]}  Kb5 {[%clk 0:00:06]} 95. Qb2+ {[%clk 0:00:10]}  Ka6 {[%clk 0:00:05]} 96. Qe2+ {[%clk 0:00:10]}  Ka5 {[%clk 0:00:05]} 97. Qe1+ {[%clk 0:00:09]}  Kb5 {[%clk 0:00:05]} 98. Qb1+ {[%clk 0:00:09]}  Kc5 {[%clk 0:00:05]} 99. Qg1+ {[%clk 0:00:08]}  Qd4+ {[%clk 0:00:05]} 100. Qxd4+ {[%clk 0:00:07]}  Kxd4 {[%clk 0:00:06]} 0-1

[Event "December 12 Late 2023"]
[Site "https://www.chess.com"]
[Date "2023.12.12"]
[Round "8"]
[White "Bok, Benjamin"]
[Black "Postny, Evgeny"]
[Result "1-0"]
[Board "18"]
[TimeControl "180+1"]
[WhiteFideId "1017063"]
[BlackFideId "2804344"]
[WhiteElo "2937"]
[BlackElo "2774"]
[WhiteTeam "NED"]
[BlackTeam "ISR"]
[WhiteClock "0:00:12"]
[BlackClock "0:00:00"]

1. d4 {[%clk 0:03:00]}  d5 {[%clk 0:02:57]} 2. c4 {[%clk 0:03:01]}  c6 {[%clk 0:02:57]} 3. Nf3 {[%clk 0:03:00]}  Nf6 {[%clk 0:02:57]} 4. cxd5 {[%clk 0:03:00]}  cxd5 {[%clk 0:02:57]} 5. Nc3 {[%clk 0:03:01]}  Nc6 {[%clk 0:02:57]} 6. Bf4 {[%clk 0:03:02]}  a6 {[%clk 0:02:58]} 7. Rc1 {[%clk 0:03:02]}  Bf5 {[%clk 0:02:54]} 8. e3 {[%clk 0:03:02]}  Rc8 {[%clk 0:02:53]} 9. Be2 {[%clk 0:03:02]}  e6 {[%clk 0:02:52]} 10. O-O {[%clk 0:03:02]}  Be7 {[%clk 0:02:52]} 11. Qb3 {[%clk 0:02:59]}  Na5 {[%clk 0:02:47]} 12. Qa4+ {[%clk 0:02:59]}  Nc6 {[%clk 0:02:47]} 13. Bxa6 {[%clk 0:02:53]}  bxa6 {[%clk 0:02:46]} 14. Ne5 {[%clk 0:02:54]}  Qb6 {[%clk 0:02:19]} 15. Ne2 {[%clk 0:02:53]}  Qb5 {[%clk 0:02:17]} 16. Qxb5 {[%clk 0:02:50]}  axb5 {[%clk 0:02:17]} 17. Nxc6 {[%clk 0:02:49]}  Bd3 {[%clk 0:02:12]} 18. Rfe1 {[%clk 0:02:36]}  Ne4 {[%clk 0:01:51]} 19. Ne5 {[%clk 0:01:40]}  Rxc1 {[%clk 0:01:42]} 20. Nxc1 {[%clk 0:01:41]}  Bc2 {[%clk 0:01:42]} 21. f3 {[%clk 0:01:40]}  g5 {[%clk 0:01:21]} 22. fxe4 {[%clk 0:01:29]}  gxf4 {[%clk 0:01:20]} 23. exd5 {[%clk 0:01:30]}  fxe3 {[%clk 0:01:14]} 24. dxe6 {[%clk 0:01:26]}  fxe6 {[%clk 0:00:56]} 25. Rxe3 {[%clk 0:01:26]}  O-O {[%clk 0:00:37]} 26. Ncd3 {[%clk 0:01:23]}  Kh8 {[%clk 0:00:21]} 27. Nc5 {[%clk 0:01:02]}  Rf6 {[%clk 0:00:11]} 28. h3 {[%clk 0:00:27]}  Bb1 {[%clk 0:00:08]} 29. a3 {[%clk 0:00:26]}  Ba2 {[%clk 0:00:08]} 30. Nc6 {[%clk 0:00:23]}  Bd6 {[%clk 0:00:05]} 31. Nb4 {[%clk 0:00:23]}  Bc4 {[%clk 0:00:05]} 32. g4 {[%clk 0:00:17]}  Bf4 {[%clk 0:00:05]} 33. Re4 {[%clk 0:00:12]}  Bg5 {[%clk 0:00:02]} 34. b3 {[%clk 0:00:11]}  Rf1+ {[%clk 0:00:00]} 35. Kg2 {[%clk 0:00:12]} 1-0

[Event "December 12 Late 2023"]
[Site "https://www.chess.com"]
[Date "2023.12.12"]
[Round "8"]
[White "Adewumi, Tanitoluwa"]
[Black "Chigaev, Maksim"]
[Result "1-0"]
[Board "19"]
[TimeControl "180+1"]
[WhiteFideId "30966396"]
[BlackFideId "4108116"]
[WhiteElo "2753"]
[BlackElo "2896"]
[WhiteTeam "USA"]
[BlackTeam "ESP"]
[WhiteClock "0:00:02"]
[BlackClock "0:00:00"]

1. e4 {[%clk 0:02:40]}  e5 {[%clk 0:02:59]} 2. Nf3 {[%clk 0:02:38]}  Nc6 {[%clk 0:03:00]} 3. Bc4 {[%clk 0:02:28]}  Nf6 {[%clk 0:02:58]} 4. d3 {[%clk 0:02:27]}  Bc5 {[%clk 0:02:57]} 5. O-O {[%clk 0:02:25]}  d6 {[%clk 0:02:57]} 6. c3 {[%clk 0:02:23]}  h6 {[%clk 0:02:57]} 7. Re1 {[%clk 0:02:22]}  O-O {[%clk 0:02:55]} 8. h3 {[%clk 0:02:22]}  a5 {[%clk 0:02:55]} 9. Nbd2 {[%clk 0:02:18]}  a4 {[%clk 0:02:50]} 10. Bb5 {[%clk 0:02:15]}  Bd7 {[%clk 0:02:50]} 11. Bxa4 {[%clk 0:02:13]}  Rxa4 {[%clk 0:02:48]} 12. Qxa4 {[%clk 0:02:11]}  Nb4 {[%clk 0:02:49]} 13. Qb3 {[%clk 0:01:25]}  Nxd3 {[%clk 0:02:46]} 14. Rf1 {[%clk 0:01:20]}  Nh5 {[%clk 0:02:19]} 15. Qc2 {[%clk 0:00:54]}  Ndf4 {[%clk 0:01:49]} 16. Nb3 {[%clk 0:00:46]}  Bb6 {[%clk 0:01:10]} 17. Be3 {[%clk 0:00:42]}  Qf6 {[%clk 0:01:09]} 18. Bxb6 {[%clk 0:00:21]}  Bxh3 {[%clk 0:00:51]} 19. g3 {[%clk 0:00:16]}  cxb6 {[%clk 0:00:39]} 20. Nbd2 {[%clk 0:00:09]}  Bxf1 {[%clk 0:00:26]} 21. Rxf1 {[%clk 0:00:07]}  Qg6 {[%clk 0:00:26]} 22. Kh2 {[%clk 0:00:04]}  Ne6 {[%clk 0:00:20]} 23. Qd1 {[%clk 0:00:03]}  Nf6 {[%clk 0:00:17]} 24. Nh4 {[%clk 0:00:03]}  Qh5 {[%clk 0:00:15]} 25. Qxh5 {[%clk 0:00:03]}  Nxh5 {[%clk 0:00:16]} 26. Nc4 {[%clk 0:00:04]}  Rd8 {[%clk 0:00:14]} 27. Rd1 {[%clk 0:00:03]}  Nf6 {[%clk 0:00:12]} 28. Rxd6 {[%clk 0:00:02]}  Ra8 {[%clk 0:00:13]} 29. Nxb6 {[%clk 0:00:02]}  Nxe4 {[%clk 0:00:14]} 30. Rxe6 {[%clk 0:00:01]}  Rxa2 {[%clk 0:00:14]} 31. Re8+ {[%clk 0:00:01]}  Kh7 {[%clk 0:00:14]} 32. Nd7 {[%clk 0:00:02]}  g6 {[%clk 0:00:08]} 33. Rxe5 {[%clk 0:00:03]}  Nxf2 {[%clk 0:00:07]} 34. Re7 {[%clk 0:00:02]}  Ng4+ {[%clk 0:00:05]} 35. Kh3 {[%clk 0:00:02]}  h5 {[%clk 0:00:03]} 36. Rxf7+ {[%clk 0:00:03]}  Kg8 {[%clk 0:00:02]} 37. Rf8+ {[%clk 0:00:02]}  Kg7 {[%clk 0:00:02]} 38. Re8 {[%clk 0:00:02]}  Rxb2 {[%clk 0:00:03]} 39. Nf5+ {[%clk 0:00:01]}  gxf5 {[%clk 0:00:03]} 40. Kh4 {[%clk 0:00:02]}  Rh2+ {[%clk 0:00:02]} 41. Kg5 {[%clk 0:00:02]}  Rh3 {[%clk 0:00:02]} 42. Re7+ {[%clk 0:00:02]}  Kg8 {[%clk 0:00:00]} 43. Kg6 {[%clk 0:00:02]} 1-0

[Event "December 12 Late 2023"]
[Site "https://www.chess.com"]
[Date "2023.12.12"]
[Round "8"]
[White "Miranda, Rafael"]
[Black "Popov, Konstantin"]
[Result "1-0"]
[Board "23"]
[TimeControl "180+1"]
[WhiteFideId "130990"]
[BlackFideId "34137910"]
[WhiteElo "2632"]
[BlackElo "2866"]
[WhiteTeam "ARG"]
[BlackTeam "FID"]
[WhiteClock "0:02:38"]
[BlackClock "0:02:29"]

1. e4 {[%clk 0:03:00]}  c5 {[%clk 0:03:00]} 2. Nf3 {[%clk 0:03:00]}  d6 {[%clk 0:02:59]} 3. d4 {[%clk 0:03:01]}  cxd4 {[%clk 0:02:59]} 4. Nxd4 {[%clk 0:03:02]}  Nf6 {[%clk 0:02:59]} 5. Nc3 {[%clk 0:03:02]}  a6 {[%clk 0:02:59]} 6. a3 {[%clk 0:03:02]}  e5 {[%clk 0:02:59]} 7. Nf5 {[%clk 0:03:02]}  d5 {[%clk 0:02:58]} 8. Bg5 {[%clk 0:03:01]}  d4 {[%clk 0:02:58]} 9. Bxf6 {[%clk 0:03:01]}  gxf6 {[%clk 0:02:59]} 10. Ne2 {[%clk 0:02:55]}  Bxf5 {[%clk 0:02:57]} 11. exf5 {[%clk 0:02:56]}  Qd5 {[%clk 0:02:54]} 12. Ng3 {[%clk 0:02:56]}  Nd7 {[%clk 0:02:44]} 13. Bd3 {[%clk 0:02:55]}  Nc5 {[%clk 0:02:43]} 14. O-O {[%clk 0:02:55]}  Be7 {[%clk 0:02:39]} 15. Qe2 {[%clk 0:02:50]}  h5 {[%clk 0:02:35]} 16. Nxh5 {[%clk 0:02:37]}  e4 {[%clk 0:02:34]} 17. Bc4 {[%clk 0:02:38]}  Qxf5 {[%clk 0:02:29]} 18. Ng7+ {[%clk 0:02:38]} 1-0

[Event "December 12 Late 2023"]
[Site "https://www.chess.com"]
[Date "2023.12.12"]
[Round "8"]
[White "Holt, Conrad"]
[Black "Dragomirescu, Robin-Alexandru"]
[Result "0-1"]
[Board "26"]
[TimeControl "180+1"]
[WhiteFideId "2034387"]
[BlackFideId "1213849"]
[WhiteElo "2808"]
[BlackElo "2590"]
[WhiteTeam "USA"]
[BlackTeam "ROU"]
[WhiteClock "0:00:08"]
[BlackClock "0:00:07"]

1. d4 {[%clk 0:03:00]}  d5 {[%clk 0:02:57]} 2. c4 {[%clk 0:03:01]}  Nc6 {[%clk 0:02:58]} 3. cxd5 {[%clk 0:02:59]}  Qxd5 {[%clk 0:02:58]} 4. e3 {[%clk 0:02:59]}  e5 {[%clk 0:02:57]} 5. Nc3 {[%clk 0:02:59]}  Bb4 {[%clk 0:02:58]} 6. Bd2 {[%clk 0:02:58]}  Bxc3 {[%clk 0:02:58]} 7. Bxc3 {[%clk 0:02:57]}  exd4 {[%clk 0:02:55]} 8. Ne2 {[%clk 0:02:58]}  Nf6 {[%clk 0:02:43]} 9. Nxd4 {[%clk 0:02:57]}  O-O {[%clk 0:02:42]} 10. Qb3 {[%clk 0:02:56]}  Nxd4 {[%clk 0:02:35]} 11. Bxd4 {[%clk 0:02:56]}  b6 {[%clk 0:02:24]} 12. Bxf6 {[%clk 0:02:34]}  Qxb3 {[%clk 0:02:23]} 13. axb3 {[%clk 0:02:35]}  gxf6 {[%clk 0:02:23]} 14. b4 {[%clk 0:02:34]}  a5 {[%clk 0:02:16]} 15. bxa5 {[%clk 0:02:31]}  Rxa5 {[%clk 0:02:16]} 16. Rxa5 {[%clk 0:02:30]}  bxa5 {[%clk 0:02:17]} 17. Bd3 {[%clk 0:02:22]}  Be6 {[%clk 0:02:15]} 18. Kd2 {[%clk 0:02:19]}  Rb8 {[%clk 0:02:15]} 19. Kc3 {[%clk 0:02:14]}  Rb3+ {[%clk 0:01:58]} 20. Kc2 {[%clk 0:02:13]}  a4 {[%clk 0:01:53]} 21. Ra1 {[%clk 0:02:12]}  Rb4 {[%clk 0:01:53]} 22. g3 {[%clk 0:02:02]}  Kf8 {[%clk 0:01:47]} 23. Kc3 {[%clk 0:01:44]}  Rb3+ {[%clk 0:01:47]} 24. Kc2 {[%clk 0:01:44]}  Rb4 {[%clk 0:01:47]} 25. Ra3 {[%clk 0:01:42]}  Ke7 {[%clk 0:01:01]} 26. Kc3 {[%clk 0:01:37]}  c5 {[%clk 0:00:59]} 27. Bc2 {[%clk 0:01:35]}  Bd7 {[%clk 0:00:56]} 28. Ra1 {[%clk 0:01:19]}  h6 {[%clk 0:00:55]} 29. Rd1 {[%clk 0:01:16]}  Be6 {[%clk 0:00:56]} 30. Ra1 {[%clk 0:01:12]}  Bd7 {[%clk 0:00:54]} 31. b3 {[%clk 0:00:48]}  axb3 {[%clk 0:00:52]} 32. Bxb3 {[%clk 0:00:49]}  Rb7 {[%clk 0:00:33]} 33. Ra8 {[%clk 0:00:40]}  Bg4 {[%clk 0:00:20]} 34. Bd5 {[%clk 0:00:33]}  Rd7 {[%clk 0:00:19]} 35. Bc4 {[%clk 0:00:19]}  h5 {[%clk 0:00:17]} 36. Ra5 {[%clk 0:00:14]}  Kd6 {[%clk 0:00:15]} 37. Ra6+ {[%clk 0:00:14]}  Ke7 {[%clk 0:00:13]} 38. Rc6 {[%clk 0:00:14]}  Be6 {[%clk 0:00:13]} 39. Rxc5 {[%clk 0:00:13]}  h4 {[%clk 0:00:13]} 40. gxh4 {[%clk 0:00:09]}  Kd6 {[%clk 0:00:12]} 41. Bxe6 {[%clk 0:00:08]}  fxe6 {[%clk 0:00:09]} 42. Rc4 {[%clk 0:00:08]}  Ke5 {[%clk 0:00:07]} 43. Rf4 {[%clk 0:00:06]}  Rd8 {[%clk 0:00:06]} 44. Kc2 {[%clk 0:00:03]}  Rd7 {[%clk 0:00:06]} 45. Kc3 {[%clk 0:00:04]}  Rd8 {[%clk 0:00:06]} 46. h5 {[%clk 0:00:04]}  Rh8 {[%clk 0:00:06]} 47. Rh4 {[%clk 0:00:04]}  Kf5 {[%clk 0:00:06]} 48. Kd3 {[%clk 0:00:05]}  Kg5 {[%clk 0:00:07]} 49. Rh3 {[%clk 0:00:05]}  Kg4 {[%clk 0:00:06]} 50. Rg3+ {[%clk 0:00:06]}  Kf5 {[%clk 0:00:07]} 51. Ke2 {[%clk 0:00:03]}  Rxh5 {[%clk 0:00:07]} 52. h3 {[%clk 0:00:04]}  Rh8 {[%clk 0:00:07]} 53. Kf3 {[%clk 0:00:04]}  e5 {[%clk 0:00:07]} 54. Kg2 {[%clk 0:00:05]}  e4 {[%clk 0:00:07]} 55. Rg4 {[%clk 0:00:05]}  Rh7 {[%clk 0:00:06]} 56. Kg3 {[%clk 0:00:05]}  Rh8 {[%clk 0:00:07]} 57. Rh4 {[%clk 0:00:05]}  Rg8+ {[%clk 0:00:07]} 58. Rg4 {[%clk 0:00:06]}  Rh8 {[%clk 0:00:07]} 59. Rf4+ {[%clk 0:00:06]}  Ke5 {[%clk 0:00:07]} 60. Rh4 {[%clk 0:00:06]}  Rg8+ {[%clk 0:00:07]} 61. Rg4 {[%clk 0:00:06]}  Rh8 {[%clk 0:00:08]} 62. Rg7 {[%clk 0:00:07]}  Kf5 {[%clk 0:00:03]} 63. h4 {[%clk 0:00:07]}  Rh6 {[%clk 0:00:04]} 64. Kh3 {[%clk 0:00:06]}  Rh8 {[%clk 0:00:03]} 65. Kg3 {[%clk 0:00:07]}  Rh6 {[%clk 0:00:04]} 66. Rg8 {[%clk 0:00:07]}  Rh7 {[%clk 0:00:05]} 67. Kh3 {[%clk 0:00:07]}  Rh6 {[%clk 0:00:05]} 68. Rg4 {[%clk 0:00:07]}  Rh7 {[%clk 0:00:05]} 69. Rf4+ {[%clk 0:00:08]}  Ke5 {[%clk 0:00:06]} 70. Kg4 {[%clk 0:00:08]}  Rg7+ {[%clk 0:00:06]} 71. Kh5 {[%clk 0:00:09]}  f5 {[%clk 0:00:06]} 72. Kh6 {[%clk 0:00:09]}  Rg1 {[%clk 0:00:06]} 73. h5 {[%clk 0:00:08]}  Kf6 {[%clk 0:00:06]} 74. Rh4 {[%clk 0:00:08]}  Rg8 {[%clk 0:00:06]} 75. Rh1 {[%clk 0:00:08]}  Rh8# {[%clk 0:00:07]} 0-1

[Event "December 12 Late 2023"]
[Site "https://www.chess.com"]
[Date "2023.12.12"]
[Round "8"]
[White "Sai Krishna G V"]
[Black "Szpar, Milosz"]
[Result "1-0"]
[Board "29"]
[TimeControl "180+1"]
[WhiteFideId "5028280"]
[BlackFideId "1184989"]
[WhiteElo "2710"]
[BlackElo "2873"]
[WhiteTeam "IND"]
[BlackTeam "POL"]
[WhiteClock "0:00:42"]
[BlackClock "0:00:39"]

1. d4 {[%clk 0:03:00]}  d5 {[%clk 0:02:59]} 2. c4 {[%clk 0:03:00]}  e6 {[%clk 0:02:59]} 3. Nf3 {[%clk 0:03:01]}  Nf6 {[%clk 0:02:59]} 4. Nc3 {[%clk 0:03:01]}  dxc4 {[%clk 0:02:55]} 5. e3 {[%clk 0:02:51]}  a6 {[%clk 0:02:55]} 6. Bxc4 {[%clk 0:02:51]}  b5 {[%clk 0:02:56]} 7. Bb3 {[%clk 0:02:50]}  Bb7 {[%clk 0:02:56]} 8. O-O {[%clk 0:02:49]}  Nbd7 {[%clk 0:02:55]} 9. Qe2 {[%clk 0:02:43]}  c5 {[%clk 0:02:54]} 10. Rd1 {[%clk 0:02:40]}  Qb8 {[%clk 0:02:50]} 11. d5 {[%clk 0:02:35]}  c4 {[%clk 0:02:50]} 12. dxe6 {[%clk 0:02:35]}  fxe6 {[%clk 0:02:50]} 13. Bc2 {[%clk 0:02:34]}  Bd6 {[%clk 0:02:50]} 14. Ng5 {[%clk 0:02:29]}  Nc5 {[%clk 0:02:36]} 15. b4 {[%clk 0:01:52]}  cxb3 {[%clk 0:02:33]} 16. Bxb3 {[%clk 0:01:48]}  Nxb3 {[%clk 0:02:24]} 17. axb3 {[%clk 0:01:49]}  Bxh2+ {[%clk 0:02:24]} 18. Kh1 {[%clk 0:01:48]}  Qe5 {[%clk 0:02:23]} 19. f4 {[%clk 0:01:20]}  Qxc3 {[%clk 0:02:11]} 20. Bb2 {[%clk 0:01:18]}  Qc6 {[%clk 0:02:10]} 21. Kxh2 {[%clk 0:01:17]}  O-O {[%clk 0:02:08]} 22. Rac1 {[%clk 0:01:13]}  Qe8 {[%clk 0:01:58]} 23. Ba3 {[%clk 0:01:08]}  h6 {[%clk 0:01:57]} 24. Bxf8 {[%clk 0:01:07]}  hxg5 {[%clk 0:01:57]} 25. fxg5 {[%clk 0:00:57]}  Ne4 {[%clk 0:01:47]} 26. Rc7 {[%clk 0:00:50]}  Qb8 {[%clk 0:01:44]} 27. Rd7 {[%clk 0:00:45]}  Kxf8 {[%clk 0:01:23]} 28. Qh5 {[%clk 0:00:43]}  Kg8 {[%clk 0:00:39]} 29. Qf7+ {[%clk 0:00:41]}  Kh8 {[%clk 0:00:39]} 30. Qxg7# {[%clk 0:00:42]} 1-0